Workbook

Sheet 収益 (売上)
B1: 12 か月 | AD1: 会社名
B2: 損益予測 | AB2: 会計年度の開始: | AC2: 1 月 | AD2: =YEAR(TODAY()) -> 2017
D3: =UPPER(TEXT(DATE(FYStartYear,FYMonthNo,1),"yyyy 年 m 月")) -> 2017 年 1 月 | E3: =UPPER(TEXT(DATE(FYStartYear,FYMonthNo+1,1),"yyyy 年 m 月")) -> 2017 年 2 月 | F3: =UPPER(TEXT(DATE(FYStartYear,FYMonthNo+2,1),"yyyy 年 m 月")) -> 2017 年 3 月 | G3: =UPPER(TEXT(DATE(FYStartYear,FYMonthNo+3,1),"yyyy 年 m 月")) -> 2017 年 4 月 | H3: =UPPER(TEXT(DATE(FYStartYear,FYMonthNo+4,1),"yyyy 年 m 月")) -> 2017 年 5 月 | I3: =UPPER(TEXT(DATE(FYStartYear,FYMonthNo+5,1),"yyyy 年 m 月")) -> 2017 年 6 月 | J3: =UPPER(TEXT(DATE(FYStartYear,FYMonthNo+6,1),"yyyy 年 m 月")) -> 2017 年 7 月 | K3: =UPPER(TEXT(DATE(FYStartYear,FYMonthNo+7,1),"yyyy 年 m 月")) -> 2017 年 8 月 | L3: =UPPER(TEXT(DATE(FYStartYear,FYMonthNo+8,1),"yyyy 年 m 月")) -> 2017 年 9 月 | M3: =UPPER(TEXT(DATE(FYStartYear,FYMonthNo+9,1),"yyyy 年 m 月")) -> 2017 年 10 月 | N3: =UPPER(TEXT(DATE(FYStartYear,FYMonthNo+10,1),"yyyy 年 m 月")) -> 2017 年 11 月 | O3: =UPPER(TEXT(DATE(FYStartYear,FYMonthNo+11,1),"yyyy 年 m 月")) -> 2017 年 12 月 | P3: 年次 | Q3: インデックス % | R3: =IF(RIGHT(D3,4)>"0",RIGHT(D3,4),RIGHT(D3,3))&" %" -> 1 月 % | S3: =IF(RIGHT(E3,4)>"0",RIGHT(E3,4),RIGHT(E3,3))&" %" -> 2 月 % | T3: 3 月 % | U3: 4 月 % | V3: 5 月 % | W3: 6 月 % | X3: 7 月 % | Y3: 8 月 % | Z3: 9 月 % | AA3: 10 月 % | AB3: 11 月 % | AC3: 12 月 % | AD3: 年 %
B4: 収益 (売上) | C4: トレンド | D4: 1 月 | E4: 2 月 | F4: 3 月 | G4: 4 月 | H4: 5 月 | I4: 6 月 | J4: 7 月 | K4: 8 月 | L4: 9 月 | M4: 10 月 | N4: 11 月 | O4: 12 月 | P4: 年次 | Q4: インデックス % | R4: 1 月 % | S4: 2 月 % | T4: 3 月 % | U4: 4 月 % | V4: 5 月 % | W4: 6 月 % | X4: 7 月 % | Y4: 8 月 % | Z4: 9 月 % | AA4: 10 月 % | AB4: 11 月 % | AC4: 12 月 % | AD4: 年 %
B5: 収益 1 | D5: ¥18,600 | E5: ¥10,800 | F5: ¥9,200 | G5: ¥12,200 | H5: ¥19,000 | I5: ¥7,100 | J5: ¥2,100 | K5: ¥3,700 | L5: ¥2,400 | M5: ¥17,800 | N5: ¥9,200 | O5: ¥9,700 | P5: =SUM(収益[[#This Row],[1 月]:[12 月]]) -> ¥121,800 | Q5: 12% | R5: =IFERROR(収益[[#This Row],[1 月]]/収益[[#Totals],[1 月]],"-") -> 30% | S5: =IFERROR(収益[[#This Row],[2 月]]/収益[[#Totals],[2 月]],"-") -> 15% | T5: =IFERROR(収益[[#This Row],[3 月]]/収益[[#Totals],[3 月]],"-") -> 11% | U5: =IFERROR(収益[[#This Row],[4 月]]/収益[[#Totals],[4 月]],"-") -> 20% | V5: =IFERROR(収益[[#This Row],[5 月]]/収益[[#Totals],[5 月]],"-") -> 23% | W5: =IFERROR(収益[[#This Row],[6 月]]/収益[[#Totals],[6 月]],"-") -> 12% | X5: =IFERROR(収益[[#This Row],[7 月]]/収益[[#Totals],[7 月]],"-") -> 4% | Y5: =IFERROR(収益[[#This Row],[8 月]]/収益[[#Totals],[8 月]],"-") -> 5% | Z5: =IFERROR(収益[[#This Row],[9 月]]/収益[[#Totals],[9 月]],"-") -> 3% | AA5: =IFERROR(収益[[#This Row],[10 月]]/収益[[#Totals],[10 月]],"-") -> 26% | AB5: =IFERROR(収益[[#This Row],[11 月]]/収益[[#Totals],[11 月]],"-") -> 12% | AC5: =IFERROR(収益[[#This Row],[12 月]]/収益[[#Totals],[12 月]],"-") -> 9% | AD5: =IFERROR(収益[[#This Row],[年次]]/収益[[#Totals],[年次]],"-") -> 14%
B6: 収益 2 | D6: ¥1,500 | E6: ¥1,600 | F6: ¥19,800 | G6: ¥4,400 | H6: ¥2,500 | I6: ¥6,800 | J6: ¥4,300 | K6: ¥11,900 | L6: ¥3,700 | M6: ¥11,800 | N6: ¥2,900 | O6: ¥17,100 | P6: =SUM(収益[[#This Row],[1 月]:[12 月]]) -> ¥88,300 | Q6: 18% | R6: =IFERROR(収益[[#This Row],[1 月]]/収益[[#Totals],[1 月]],"-") -> 2% | S6: =IFERROR(収益[[#This Row],[2 月]]/収益[[#Totals],[2 月]],"-") -> 2% | T6: =IFERROR(収益[[#This Row],[3 月]]/収益[[#Totals],[3 月]],"-") -> 24% | U6: =IFERROR(収益[[#This Row],[4 月]]/収益[[#Totals],[4 月]],"-") -> 7% | V6: =IFERROR(収益[[#This Row],[5 月]]/収益[[#Totals],[5 月]],"-") -> 3% | W6: =IFERROR(収益[[#This Row],[6 月]]/収益[[#Totals],[6 月]],"-") -> 12% | X6: =IFERROR(収益[[#This Row],[7 月]]/収益[[#Totals],[7 月]],"-") -> 7% | Y6: =IFERROR(収益[[#This Row],[8 月]]/収益[[#Totals],[8 月]],"-") -> 18% | Z6: =IFERROR(収益[[#This Row],[9 月]]/収益[[#Totals],[9 月]],"-") -> 5% | AA6: =IFERROR(収益[[#This Row],[10 月]]/収益[[#Totals],[10 月]],"-") -> 17% | AB6: =IFERROR(収益[[#This Row],[11 月]]/収益[[#Totals],[11 月]],"-") -> 4% | AC6: =IFERROR(収益[[#This Row],[12 月]]/収益[[#Totals],[12 月]],"-") -> 16% | AD6: =IFERROR(収益[[#This Row],[年次]]/収益[[#Totals],[年次]],"-") -> 10%
B7: 収益 3 | D7: ¥16,600 | E7: ¥18,500 | F7: ¥8,900 | G7: ¥17,000 | H7: ¥13,100 | I7: ¥7,000 | J7: ¥5,000 | K7: ¥14,900 | L7: ¥17,900 | M7: ¥10,400 | N7: ¥11,900 | O7: ¥18,700 | P7: =SUM(収益[[#This Row],[1 月]:[12 月]]) -> ¥159,900 | Q7: 19% | R7: =IFERROR(収益[[#This Row],[1 月]]/収益[[#Totals],[1 月]],"-") -> 27% | S7: =IFERROR(収益[[#This Row],[2 月]]/収益[[#Totals],[2 月]],"-") -> 25% | T7: =IFERROR(収益[[#This Row],[3 月]]/収益[[#Totals],[3 月]],"-") -> 11% | U7: =IFERROR(収益[[#This Row],[4 月]]/収益[[#Totals],[4 月]],"-") -> 28% | V7: =IFERROR(収益[[#This Row],[5 月]]/収益[[#Totals],[5 月]],"-") -> 16% | W7: =IFERROR(収益[[#This Row],[6 月]]/収益[[#Totals],[6 月]],"-") -> 12% | X7: =IFERROR(収益[[#This Row],[7 月]]/収益[[#Totals],[7 月]],"-") -> 8% | Y7: =IFERROR(収益[[#This Row],[8 月]]/収益[[#Totals],[8 月]],"-") -> 22% | Z7: =IFERROR(収益[[#This Row],[9 月]]/収益[[#Totals],[9 月]],"-") -> 24% | AA7: =IFERROR(収益[[#This Row],[10 月]]/収益[[#Totals],[10 月]],"-") -> 15% | AB7: =IFERROR(収益[[#This Row],[11 月]]/収益[[#Totals],[11 月]],"-") -> 16% | AC7: =IFERROR(収益[[#This Row],[12 月]]/収益[[#Totals],[12 月]],"-") -> 18% | AD7: =IFERROR(収益[[#This Row],[年次]]/収益[[#Totals],[年次]],"-") -> 18%
B8: 収益 4 | D8: ¥2,100 | E8: ¥11,300 | F8: ¥8,300 | G8: ¥1,700 | H8: ¥13,000 | I8: ¥2,600 | J8: ¥16,700 | K8: ¥10,200 | L8: ¥8,200 | M8: ¥3,300 | N8: ¥8,800 | O8: ¥19,300 | P8: =SUM(収益[[#This Row],[1 月]:[12 月]]) -> ¥105,500 | Q8: 11% | R8: =IFERROR(収益[[#This Row],[1 月]]/収益[[#Totals],[1 月]],"-") -> 3% | S8: =IFERROR(収益[[#This Row],[2 月]]/収益[[#Totals],[2 月]],"-") -> 15% | T8: =IFERROR(収益[[#This Row],[3 月]]/収益[[#Totals],[3 月]],"-") -> 10% | U8: =IFERROR(収益[[#This Row],[4 月]]/収益[[#Totals],[4 月]],"-") -> 3% | V8: =IFERROR(収益[[#This Row],[5 月]]/収益[[#Totals],[5 月]],"-") -> 16% | W8: =IFERROR(収益[[#This Row],[6 月]]/収益[[#Totals],[6 月]],"-") -> 4% | X8: =IFERROR(収益[[#This Row],[7 月]]/収益[[#Totals],[7 月]],"-") -> 28% | Y8: =IFERROR(収益[[#This Row],[8 月]]/収益[[#Totals],[8 月]],"-") -> 15% | Z8: =IFERROR(収益[[#This Row],[9 月]]/収益[[#Totals],[9 月]],"-") -> 11% | AA8: =IFERROR(収益[[#This Row],[10 月]]/収益[[#Totals],[10 月]],"-") -> 5% | AB8: =IFERROR(収益[[#This Row],[11 月]]/収益[[#Totals],[11 月]],"-") -> 12% | AC8: =IFERROR(収益[[#This Row],[12 月]]/収益[[#Totals],[12 月]],"-") -> 19% | AD8: =IFERROR(収益[[#This Row],[年次]]/収益[[#Totals],[年次]],"-") -> 12%
B9: 収益 5 | D9: ¥7,000 | E9: ¥16,000 | F9: ¥12,500 | G9: ¥8,400 | H9: ¥19,100 | I9: ¥9,700 | J9: ¥5,200 | K9: ¥4,500 | L9: ¥17,300 | M9: ¥13,600 | N9: ¥14,400 | O9: ¥16,700 | P9: =SUM(収益[[#This Row],[1 月]:[12 月]]) -> ¥144,400 | Q9: 20% | R9: =IFERROR(収益[[#This Row],[1 月]]/収益[[#Totals],[1 月]],"-") -> 11% | S9: =IFERROR(収益[[#This Row],[2 月]]/収益[[#Totals],[2 月]],"-") -> 22% | T9: =IFERROR(収益[[#This Row],[3 月]]/収益[[#Totals],[3 月]],"-") -> 15% | U9: =IFERROR(収益[[#This Row],[4 月]]/収益[[#Totals],[4 月]],"-") -> 14% | V9: =IFERROR(収益[[#This Row],[5 月]]/収益[[#Totals],[5 月]],"-") -> 24% | W9: =IFERROR(収益[[#This Row],[6 月]]/収益[[#Totals],[6 月]],"-") -> 17% | X9: =IFERROR(収益[[#This Row],[7 月]]/収益[[#Totals],[7 月]],"-") -> 9% | Y9: =IFERROR(収益[[#This Row],[8 月]]/収益[[#Totals],[8 月]],"-") -> 7% | Z9: =IFERROR(収益[[#This Row],[9 月]]/収益[[#Totals],[9 月]],"-") -> 23% | AA9: =IFERROR(収益[[#This Row],[10 月]]/収益[[#Totals],[10 月]],"-") -> 20% | AB9: =IFERROR(収益[[#This Row],[11 月]]/収益[[#Totals],[11 月]],"-") -> 19% | AC9: =IFERROR(収益[[#This Row],[12 月]]/収益[[#Totals],[12 月]],"-") -> 16% | AD9: =IFERROR(収益[[#This Row],[年次]]/収益[[#Totals],[年次]],"-") -> 17%
B10: 収益 6 | D10: ¥6,100 | E10: ¥9,900 | F10: ¥7,000 | G10: ¥16,200 | H10: ¥2,800 | I10: ¥16,300 | J10: ¥10,100 | K10: ¥10,300 | L10: ¥7,800 | M10: ¥3,300 | N10: ¥16,200 | O10: ¥15,900 | P10: =SUM(収益[[#This Row],[1 月]:[12 月]]) -> ¥121,900 | Q10: 10% | R10: =IFERROR(収益[[#This Row],[1 月]]/収益[[#Totals],[1 月]],"-") -> 10% | S10: =IFERROR(収益[[#This Row],[2 月]]/収益[[#Totals],[2 月]],"-") -> 13% | T10: =IFERROR(収益[[#This Row],[3 月]]/収益[[#Totals],[3 月]],"-") -> 9% | U10: =IFERROR(収益[[#This Row],[4 月]]/収益[[#Totals],[4 月]],"-") -> 27% | V10: =IFERROR(収益[[#This Row],[5 月]]/収益[[#Totals],[5 月]],"-") -> 3% | W10: =IFERROR(収益[[#This Row],[6 月]]/収益[[#Totals],[6 月]],"-") -> 28% | X10: =IFERROR(収益[[#This Row],[7 月]]/収益[[#Totals],[7 月]],"-") -> 17% | Y10: =IFERROR(収益[[#This Row],[8 月]]/収益[[#Totals],[8 月]],"-") -> 15% | Z10: =IFERROR(収益[[#This Row],[9 月]]/収益[[#Totals],[9 月]],"-") -> 10% | AA10: =IFERROR(収益[[#This Row],[10 月]]/収益[[#Totals],[10 月]],"-") -> 5% | AB10: =IFERROR(収益[[#This Row],[11 月]]/収益[[#Totals],[11 月]],"-") -> 22% | AC10: =IFERROR(収益[[#This Row],[12 月]]/収益[[#Totals],[12 月]],"-") -> 15% | AD10: =IFERROR(収益[[#This Row],[年次]]/収益[[#Totals],[年次]],"-") -> 14%
B11: 収益 7 | D11: ¥10,500 | E11: ¥5,500 | F11: ¥16,300 | G11: ¥1,200 | H11: ¥11,700 | I11: ¥8,300 | J11: ¥16,300 | K11: ¥12,000 | L11: ¥17,100 | M11: ¥7,900 | N11: ¥10,500 | O11: ¥6,900 | P11: =SUM(収益[[#This Row],[1 月]:[12 月]]) -> ¥124,200 | Q11: 10% | R11: =IFERROR(収益[[#This Row],[1 月]]/収益[[#Totals],[1 月]],"-") -> 17% | S11: =IFERROR(収益[[#This Row],[2 月]]/収益[[#Totals],[2 月]],"-") -> 7% | T11: =IFERROR(収益[[#This Row],[3 月]]/収益[[#Totals],[3 月]],"-") -> 20% | U11: =IFERROR(収益[[#This Row],[4 月]]/収益[[#Totals],[4 月]],"-") -> 2% | V11: =IFERROR(収益[[#This Row],[5 月]]/収益[[#Totals],[5 月]],"-") -> 14% | W11: =IFERROR(収益[[#This Row],[6 月]]/収益[[#Totals],[6 月]],"-") -> 14% | X11: =IFERROR(収益[[#This Row],[7 月]]/収益[[#Totals],[7 月]],"-") -> 27% | Y11: =IFERROR(収益[[#This Row],[8 月]]/収益[[#Totals],[8 月]],"-") -> 18% | Z11: =IFERROR(収益[[#This Row],[9 月]]/収益[[#Totals],[9 月]],"-") -> 23% | AA11: =IFERROR(収益[[#This Row],[10 月]]/収益[[#Totals],[10 月]],"-") -> 12% | AB11: =IFERROR(収益[[#This Row],[11 月]]/収益[[#Totals],[11 月]],"-") -> 14% | AC11: =IFERROR(収益[[#This Row],[12 月]]/収益[[#Totals],[12 月]],"-") -> 7% | AD11: =IFERROR(収益[[#This Row],[年次]]/収益[[#Totals],[年次]],"-") -> 14%
B12: 売上合計 | D12: =SUBTOTAL(109,収益[1 月]) -> ¥62,400 | E12: =SUBTOTAL(109,収益[2 月]) -> ¥73,600 | F12: =SUBTOTAL(109,収益[3 月]) -> ¥82,000 | G12: =SUBTOTAL(109,収益[4 月]) -> ¥61,100 | H12: =SUBTOTAL(109,収益[5 月]) -> ¥81,200 | I12: =SUBTOTAL(109,収益[6 月]) -> ¥57,800 | J12: =SUBTOTAL(109,収益[7 月]) -> ¥59,700 | K12: =SUBTOTAL(109,収益[8 月]) -> ¥67,500 | L12: =SUBTOTAL(109,収益[9 月]) -> ¥74,400 | M12: =SUBTOTAL(109,収益[10 月]) -> ¥68,100 | N12: =SUBTOTAL(109,収益[11 月]) -> ¥73,900 | O12: =SUBTOTAL(109,収益[12 月]) -> ¥104,300 | P12: =SUBTOTAL(109,収益[年次]) -> ¥866,000 | Q12: =SUBTOTAL(109,収益[インデックス %]) -> 100% | R12: =SUBTOTAL(109,収益[1 月 %]) -> 100% | S12: =SUBTOTAL(109,収益[2 月 %]) -> 100% | T12: =SUBTOTAL(109,収益[3 月 %]) -> 100% | U12: =SUBTOTAL(109,収益[4 月 %]) -> 100% | V12: =SUBTOTAL(109,収益[5 月 %]) -> 100% | W12: =SUBTOTAL(109,収益[6 月 %]) -> 100% | X12: =SUBTOTAL(109,収益[7 月 %]) -> 100% | Y12: =SUBTOTAL(109,収益[8 月 %]) -> 100% | Z12: =SUBTOTAL(109,収益[9 月 %]) -> 100% | AA12: =SUBTOTAL(109,収益[10 月 %]) -> 100% | AB12: =SUBTOTAL(109,収益[11 月 %]) -> 100% | AC12: =SUBTOTAL(109,収益[12 月 %]) -> 100% | AD12: =SUBTOTAL(109,収益[年 %]) -> 100%

Sheet 売上原価
B1: =Projection_Period_Title -> 12 か月 | AD1: =会社名 -> 会社名
B2: =Wksht_Title -> 損益予測 | AB2: 会計年度: | AC2: =FYMonthStart -> 1 月 | AD2: =FYStartYear -> 2017
D3: =UPPER(TEXT(DATE(FYStartYear,FYMonthNo,1),"yyyy 年 m 月")) -> 2017 年 1 月 | E3: =UPPER(TEXT(DATE(FYStartYear,FYMonthNo+1,1),"yyyy 年 m 月")) -> 2017 年 2 月 | F3: =UPPER(TEXT(DATE(FYStartYear,FYMonthNo+2,1),"yyyy 年 m 月")) -> 2017 年 3 月 | G3: =UPPER(TEXT(DATE(FYStartYear,FYMonthNo+3,1),"yyyy 年 m 月")) -> 2017 年 4 月 | H3: =UPPER(TEXT(DATE(FYStartYear,FYMonthNo+4,1),"yyyy 年 m 月")) -> 2017 年 5 月 | I3: =UPPER(TEXT(DATE(FYStartYear,FYMonthNo+5,1),"yyyy 年 m 月")) -> 2017 年 6 月 | J3: =UPPER(TEXT(DATE(FYStartYear,FYMonthNo+6,1),"yyyy 年 m 月")) -> 2017 年 7 月 | K3: =UPPER(TEXT(DATE(FYStartYear,FYMonthNo+7,1),"yyyy 年 m 月")) -> 2017 年 8 月 | L3: =UPPER(TEXT(DATE(FYStartYear,FYMonthNo+8,1),"yyyy 年 m 月")) -> 2017 年 9 月 | M3: =UPPER(TEXT(DATE(FYStartYear,FYMonthNo+9,1),"yyyy 年 m 月")) -> 2017 年 10 月 | N3: =UPPER(TEXT(DATE(FYStartYear,FYMonthNo+10,1),"yyyy 年 m 月")) -> 2017 年 11 月 | O3: =UPPER(TEXT(DATE(FYStartYear,FYMonthNo+11,1),"yyyy 年 m 月")) -> 2017 年 12 月 | P3: 年次 | Q3: インデックス % | R3: =IF(RIGHT(D3,4)>"0",RIGHT(D3,4),RIGHT(D3,3))&" %" -> 1 月 % | S3: =IF(RIGHT(E3,4)>"0",RIGHT(E3,4),RIGHT(E3,3))&" %" -> 2 月 % | T3: 3 月 % | U3: 4 月 % | V3: 5 月 % | W3: 6 月 % | X3: 7 月 % | Y3: 8 月 % | Z3: 9 月 % | AA3: 10 月 % | AB3: 11 月 % | AC3: 12 月 % | AD3: 年 %
B4: 売上原価 | C4: トレンド | D4: 1 月 | E4: 2 月 | F4: 3 月 | G4: 4 月 | H4: 5 月 | I4: 6 月 | J4: 7 月 | K4: 8 月 | L4: 9 月 | M4: 10 月 | N4: 11 月 | O4: 12 月 | P4: 年次 | Q4: インデックス % | R4: 1 月 % | S4: 2 月 % | T4: 3 月 % | U4: 4 月 % | V4: 5 月 % | W4: 6 月 % | X4: 7 月 % | Y4: 8 月 % | Z4: 9 月 % | AA4: 10 月 % | AB4: 11 月 % | AC4: 12 月 % | AD4: 年 %
B5: コスト 1 | D5: ¥6,100 | E5: ¥7,800 | F5: ¥6,500 | G5: ¥2,900 | H5: ¥12,500 | I5: ¥4,900 | J5: ¥1,400 | K5: ¥2,600 | L5: ¥1,400 | M5: ¥12,900 | N5: ¥6,000 | O5: ¥6,500 | P5: =SUM(売上原価[[#This Row],[1 月]:[12 月]]) -> ¥71,500 | Q5: 12% | R5: =IFERROR(売上原価[[#This Row],[1 月]]/売上原価[[#Totals],[1 月]],"-") -> 23% | S5: =IFERROR(売上原価[[#This Row],[2 月]]/売上原価[[#Totals],[2 月]],"-") -> 22% | T5: =IFERROR(売上原価[[#This Row],[3 月]]/売上原価[[#Totals],[3 月]],"-") -> 21% | U5: =IFERROR(売上原価[[#This Row],[4 月]]/売上原価[[#Totals],[4 月]],"-") -> 12% | V5: =IFERROR(売上原価[[#This Row],[5 月]]/売上原価[[#Totals],[5 月]],"-") -> 31% | W5: =IFERROR(売上原価[[#This Row],[6 月]]/売上原価[[#Totals],[6 月]],"-") -> 16% | X5: =IFERROR(売上原価[[#This Row],[7 月]]/売上原価[[#Totals],[7 月]],"-") -> 5% | Y5: =IFERROR(売上原価[[#This Row],[8 月]]/売上原価[[#Totals],[8 月]],"-") -> 12% | Z5: =IFERROR(売上原価[[#This Row],[9 月]]/売上原価[[#Totals],[9 月]],"-") -> 3% | AA5: =IFERROR(売上原価[[#This Row],[10 月]]/売上原価[[#Totals],[10 月]],"-") -> 47% | AB5: =IFERROR(売上原価[[#This Row],[11 月]]/売上原価[[#Totals],[11 月]],"-") -> 23% | AC5: =IFERROR(売上原価[[#This Row],[12 月]]/売上原価[[#Totals],[12 月]],"-") -> 14% | AD5: =IFERROR(売上原価[[#This Row],[年次]]/売上原価[[#Totals],[年次]],"-") -> 19%
B6: コスト 2 | D6: ¥700 | E6: ¥500 | F6: ¥6,900 | G6: ¥3,200 | H6: ¥1,100 | I6: ¥3,000 | J6: ¥2,700 | K6: ¥3,200 | L6: ¥1,000 | M6: ¥4,100 | N6: ¥1,300 | O6: ¥10,500 | P6: =SUM(売上原価[[#This Row],[1 月]:[12 月]]) -> ¥38,200 | Q6: 18% | R6: =IFERROR(売上原価[[#This Row],[1 月]]/売上原価[[#Totals],[1 月]],"-") -> 3% | S6: =IFERROR(売上原価[[#This Row],[2 月]]/売上原価[[#Totals],[2 月]],"-") -> 1% | T6: =IFERROR(売上原価[[#This Row],[3 月]]/売上原価[[#Totals],[3 月]],"-") -> 22% | U6: =IFERROR(売上原価[[#This Row],[4 月]]/売上原価[[#Totals],[4 月]],"-") -> 13% | V6: =IFERROR(売上原価[[#This Row],[5 月]]/売上原価[[#Totals],[5 月]],"-") -> 3% | W6: =IFERROR(売上原価[[#This Row],[6 月]]/売上原価[[#Totals],[6 月]],"-") -> 10% | X6: =IFERROR(売上原価[[#This Row],[7 月]]/売上原価[[#Totals],[7 月]],"-") -> 9% | Y6: =IFERROR(売上原価[[#This Row],[8 月]]/売上原価[[#Totals],[8 月]],"-") -> 14% | Z6: =IFERROR(売上原価[[#This Row],[9 月]]/売上原価[[#Totals],[9 月]],"-") -> 2% | AA6: =IFERROR(売上原価[[#This Row],[10 月]]/売上原価[[#Totals],[10 月]],"-") -> 15% | AB6: =IFERROR(売上原価[[#This Row],[11 月]]/売上原価[[#Totals],[11 月]],"-") -> 5% | AC6: =IFERROR(売上原価[[#This Row],[12 月]]/売上原価[[#Totals],[12 月]],"-") -> 23% | AD6: =IFERROR(売上原価[[#This Row],[年次]]/売上原価[[#Totals],[年次]],"-") -> 10%
B7: コスト 3 | D7: ¥9,900 | E7: ¥9,500 | F7: ¥5,100 | G7: ¥9,000 | H7: ¥2,100 | I7: ¥3,400 | J7: ¥3,000 | K7: ¥2,400 | L7: ¥10,900 | M7: ¥1,600 | N7: ¥2,100 | O7: ¥5,200 | P7: =SUM(売上原価[[#This Row],[1 月]:[12 月]]) -> ¥64,200 | Q7: 19% | R7: =IFERROR(売上原価[[#This Row],[1 月]]/売上原価[[#Totals],[1 月]],"-") -> 37% | S7: =IFERROR(売上原価[[#This Row],[2 月]]/売上原価[[#Totals],[2 月]],"-") -> 27% | T7: =IFERROR(売上原価[[#This Row],[3 月]]/売上原価[[#Totals],[3 月]],"-") -> 16% | U7: =IFERROR(売上原価[[#This Row],[4 月]]/売上原価[[#Totals],[4 月]],"-") -> 37% | V7: =IFERROR(売上原価[[#This Row],[5 月]]/売上原価[[#Totals],[5 月]],"-") -> 5% | W7: =IFERROR(売上原価[[#This Row],[6 月]]/売上原価[[#Totals],[6 月]],"-") -> 11% | X7: =IFERROR(売上原価[[#This Row],[7 月]]/売上原価[[#Totals],[7 月]],"-") -> 10% | Y7: =IFERROR(売上原価[[#This Row],[8 月]]/売上原価[[#Totals],[8 月]],"-") -> 11% | Z7: =IFERROR(売上原価[[#This Row],[9 月]]/売上原価[[#Totals],[9 月]],"-") -> 26% | AA7: =IFERROR(売上原価[[#This Row],[10 月]]/売上原価[[#Totals],[10 月]],"-") -> 6% | AB7: =IFERROR(売上原価[[#This Row],[11 月]]/売上原価[[#Totals],[11 月]],"-") -> 8% | AC7: =IFERROR(売上原価[[#This Row],[12 月]]/売上原価[[#Totals],[12 月]],"-") -> 11% | AD7: =IFERROR(売上原価[[#This Row],[年次]]/売上原価[[#Totals],[年次]],"-") -> 17%
B8: コスト 4 | D8: ¥1,300 | E8: ¥2,800 | F8: ¥1,500 | G8: ¥800 | H8: ¥8,400 | I8: ¥1,200 | J8: ¥5,400 | K8: ¥7,200 | L8: ¥4,900 | M8: ¥2,400 | N8: ¥6,000 | O8: ¥3,900 | P8: =SUM(売上原価[[#This Row],[1 月]:[12 月]]) -> ¥45,800 | Q8: 11% | R8: =IFERROR(売上原価[[#This Row],[1 月]]/売上原価[[#Totals],[1 月]],"-") -> 5% | S8: =IFERROR(売上原価[[#This Row],[2 月]]/売上原価[[#Totals],[2 月]],"-") -> 8% | T8: =IFERROR(売上原価[[#This Row],[3 月]]/売上原価[[#Totals],[3 月]],"-") -> 5% | U8: =IFERROR(売上原価[[#This Row],[4 月]]/売上原価[[#Totals],[4 月]],"-") -> 3% | V8: =IFERROR(売上原価[[#This Row],[5 月]]/売上原価[[#Totals],[5 月]],"-") -> 21% | W8: =IFERROR(売上原価[[#This Row],[6 月]]/売上原価[[#Totals],[6 月]],"-") -> 4% | X8: =IFERROR(売上原価[[#This Row],[7 月]]/売上原価[[#Totals],[7 月]],"-") -> 18% | Y8: =IFERROR(売上原価[[#This Row],[8 月]]/売上原価[[#Totals],[8 月]],"-") -> 32% | Z8: =IFERROR(売上原価[[#This Row],[9 月]]/売上原価[[#Totals],[9 月]],"-") -> 12% | AA8: =IFERROR(売上原価[[#This Row],[10 月]]/売上原価[[#Totals],[10 月]],"-") -> 9% | AB8: =IFERROR(売上原価[[#This Row],[11 月]]/売上原価[[#Totals],[11 月]],"-") -> 23% | AC8: =IFERROR(売上原価[[#This Row],[12 月]]/売上原価[[#Totals],[12 月]],"-") -> 9% | AD8: =IFERROR(売上原価[[#This Row],[年次]]/売上原価[[#Totals],[年次]],"-") -> 12%
B9: コスト 5 | D9: ¥3,400 | E9: ¥7,800 | F9: ¥4,300 | G9: ¥3,000 | H9: ¥7,700 | I9: ¥5,400 | J9: ¥2,600 | K9: ¥1,300 | L9: ¥5,600 | M9: ¥3,000 | N9: ¥4,000 | O9: ¥6,300 | P9: =SUM(売上原価[[#This Row],[1 月]:[12 月]]) -> ¥54,400 | Q9: 20% | R9: =IFERROR(売上原価[[#This Row],[1 月]]/売上原価[[#Totals],[1 月]],"-") -> 13% | S9: =IFERROR(売上原価[[#This Row],[2 月]]/売上原価[[#Totals],[2 月]],"-") -> 22% | T9: =IFERROR(売上原価[[#This Row],[3 月]]/売上原価[[#Totals],[3 月]],"-") -> 14% | U9: =IFERROR(売上原価[[#This Row],[4 月]]/売上原価[[#Totals],[4 月]],"-") -> 12% | V9: =IFERROR(売上原価[[#This Row],[5 月]]/売上原価[[#Totals],[5 月]],"-") -> 19% | W9: =IFERROR(売上原価[[#This Row],[6 月]]/売上原価[[#Totals],[6 月]],"-") -> 17% | X9: =IFERROR(売上原価[[#This Row],[7 月]]/売上原価[[#Totals],[7 月]],"-") -> 9% | Y9: =IFERROR(売上原価[[#This Row],[8 月]]/売上原価[[#Totals],[8 月]],"-") -> 6% | Z9: =IFERROR(売上原価[[#This Row],[9 月]]/売上原価[[#Totals],[9 月]],"-") -> 14% | AA9: =IFERROR(売上原価[[#This Row],[10 月]]/売上原価[[#Totals],[10 月]],"-") -> 11% | AB9: =IFERROR(売上原価[[#This Row],[11 月]]/売上原価[[#Totals],[11 月]],"-") -> 15% | AC9: =IFERROR(売上原価[[#This Row],[12 月]]/売上原価[[#Totals],[12 月]],"-") -> 14% | AD9: =IFERROR(売上原価[[#This Row],[年次]]/売上原価[[#Totals],[年次]],"-") -> 14%
B10: コスト 6 | D10: ¥3,300 | E10: ¥6,100 | F10: ¥4,200 | G10: ¥4,300 | H10: ¥1,900 | I10: ¥9,400 | J10: ¥4,600 | K10: ¥1,500 | L10: ¥5,500 | M10: ¥1,500 | N10: ¥3,700 | O10: ¥8,900 | P10: =SUM(売上原価[[#This Row],[1 月]:[12 月]]) -> ¥54,900 | Q10: 10% | R10: =IFERROR(売上原価[[#This Row],[1 月]]/売上原価[[#Totals],[1 月]],"-") -> 12% | S10: =IFERROR(売上原価[[#This Row],[2 月]]/売上原価[[#Totals],[2 月]],"-") -> 17% | T10: =IFERROR(売上原価[[#This Row],[3 月]]/売上原価[[#Totals],[3 月]],"-") -> 13% | U10: =IFERROR(売上原価[[#This Row],[4 月]]/売上原価[[#Totals],[4 月]],"-") -> 18% | V10: =IFERROR(売上原価[[#This Row],[5 月]]/売上原価[[#Totals],[5 月]],"-") -> 5% | W10: =IFERROR(売上原価[[#This Row],[6 月]]/売上原価[[#Totals],[6 月]],"-") -> 30% | X10: =IFERROR(売上原価[[#This Row],[7 月]]/売上原価[[#Totals],[7 月]],"-") -> 15% | Y10: =IFERROR(売上原価[[#This Row],[8 月]]/売上原価[[#Totals],[8 月]],"-") -> 7% | Z10: =IFERROR(売上原価[[#This Row],[9 月]]/売上原価[[#Totals],[9 月]],"-") -> 13% | AA10: =IFERROR(売上原価[[#This Row],[10 月]]/売上原価[[#Totals],[10 月]],"-") -> 5% | AB10: =IFERROR(売上原価[[#This Row],[11 月]]/売上原価[[#Totals],[11 月]],"-") -> 14% | AC10: =IFERROR(売上原価[[#This Row],[12 月]]/売上原価[[#Totals],[12 月]],"-") -> 20% | AD10: =IFERROR(売上原価[[#This Row],[年次]]/売上原価[[#Totals],[年次]],"-") -> 14%
B11: コスト 7 | D11: ¥1,800 | E11: ¥1,100 | F11: ¥3,000 | G11: ¥900 | H11: ¥6,200 | I11: ¥3,900 | J11: ¥10,200 | K11: ¥4,400 | L11: ¥12,100 | M11: ¥1,900 | N11: ¥3,300 | O11: ¥4,000 | P11: =SUM(売上原価[[#This Row],[1 月]:[12 月]]) -> ¥52,800 | Q11: 10% | R11: =IFERROR(売上原価[[#This Row],[1 月]]/売上原価[[#Totals],[1 月]],"-") -> 7% | S11: =IFERROR(売上原価[[#This Row],[2 月]]/売上原価[[#Totals],[2 月]],"-") -> 3% | T11: =IFERROR(売上原価[[#This Row],[3 月]]/売上原価[[#Totals],[3 月]],"-") -> 10% | U11: =IFERROR(売上原価[[#This Row],[4 月]]/売上原価[[#Totals],[4 月]],"-") -> 4% | V11: =IFERROR(売上原価[[#This Row],[5 月]]/売上原価[[#Totals],[5 月]],"-") -> 16% | W11: =IFERROR(売上原価[[#This Row],[6 月]]/売上原価[[#Totals],[6 月]],"-") -> 13% | X11: =IFERROR(売上原価[[#This Row],[7 月]]/売上原価[[#Totals],[7 月]],"-") -> 34% | Y11: =IFERROR(売上原価[[#This Row],[8 月]]/売上原価[[#Totals],[8 月]],"-") -> 19% | Z11: =IFERROR(売上原価[[#This Row],[9 月]]/売上原価[[#Totals],[9 月]],"-") -> 29% | AA11: =IFERROR(売上原価[[#This Row],[10 月]]/売上原価[[#Totals],[10 月]],"-") -> 7% | AB11: =IFERROR(売上原価[[#This Row],[11 月]]/売上原価[[#Totals],[11 月]],"-") -> 13% | AC11: =IFERROR(売上原価[[#This Row],[12 月]]/売上原価[[#Totals],[12 月]],"-") -> 9% | AD11: =IFERROR(売上原価[[#This Row],[年次]]/売上原価[[#Totals],[年次]],"-") -> 14%
B12: 売上原価合計 | D12: =SUBTOTAL(109,売上原価[1 月]) -> ¥26,500 | E12: =SUBTOTAL(109,売上原価[2 月]) -> ¥35,600 | F12: =SUBTOTAL(109,売上原価[3 月]) -> ¥31,500 | G12: =SUBTOTAL(109,売上原価[4 月]) -> ¥24,100 | H12: =SUBTOTAL(109,売上原価[5 月]) -> ¥39,900 | I12: =SUBTOTAL(109,売上原価[6 月]) -> ¥31,200 | J12: =SUBTOTAL(109,売上原価[7 月]) -> ¥29,900 | K12: =SUBTOTAL(109,売上原価[8 月]) -> ¥22,600 | L12: =SUBTOTAL(109,売上原価[9 月]) -> ¥41,400 | M12: =SUBTOTAL(109,売上原価[10 月]) -> ¥27,400 | N12: =SUBTOTAL(109,売上原価[11 月]) -> ¥26,400 | O12: =SUBTOTAL(109,売上原価[12 月]) -> ¥45,300 | P12: =SUBTOTAL(109,売上原価[年次]) -> ¥381,800 | Q12: =SUBTOTAL(109,売上原価[インデックス %]) -> 100% | R12: =SUBTOTAL(109,売上原価[1 月 %]) -> 100% | S12: =SUBTOTAL(109,売上原価[2 月 %]) -> 100% | T12: =SUBTOTAL(109,売上原価[3 月 %]) -> 100% | U12: =SUBTOTAL(109,売上原価[4 月 %]) -> 100% | V12: =SUBTOTAL(109,売上原価[5 月 %]) -> 100% | W12: =SUBTOTAL(109,売上原価[6 月 %]) -> 100% | X12: =SUBTOTAL(109,売上原価[7 月 %]) -> 100% | Y12: =SUBTOTAL(109,売上原価[8 月 %]) -> 100% | Z12: =SUBTOTAL(109,売上原価[9 月 %]) -> 100% | AA12: =SUBTOTAL(109,売上原価[10 月 %]) -> 100% | AB12: =SUBTOTAL(109,売上原価[11 月 %]) -> 100% | AC12: =SUBTOTAL(109,売上原価[12 月 %]) -> 100% | AD12: =SUBTOTAL(109,売上原価[年 %]) -> 100%
B14: 粗利益 | D14: =収益[[#Totals],[1 月]]-売上原価[[#Totals],[1 月]] -> ¥35,900 | E14: =収益[[#Totals],[2 月]]-売上原価[[#Totals],[2 月]] -> ¥38,000 | F14: =収益[[#Totals],[3 月]]-売上原価[[#Totals],[3 月]] -> ¥50,500 | G14: =収益[[#Totals],[4 月]]-売上原価[[#Totals],[4 月]] -> ¥37,000 | H14: =収益[[#Totals],[5 月]]-売上原価[[#Totals],[5 月]] -> ¥41,300 | I14: =収益[[#Totals],[6 月]]-売上原価[[#Totals],[6 月]] -> ¥26,600 | J14: =収益[[#Totals],[7 月]]-売上原価[[#Totals],[7 月]] -> ¥29,800 | K14: =収益[[#Totals],[8 月]]-売上原価[[#Totals],[8 月]] -> ¥44,900 | L14: =収益[[#Totals],[9 月]]-売上原価[[#Totals],[9 月]] -> ¥33,000 | M14: =収益[[#Totals],[10 月]]-売上原価[[#Totals],[10 月]] -> ¥40,700 | N14: =収益[[#Totals],[11 月]]-売上原価[[#Totals],[11 月]] -> ¥47,500 | O14: =収益[[#Totals],[12 月]]-売上原価[[#Totals],[12 月]] -> ¥59,000 | P14: =収益[[#Totals],[年次]]-売上原価[[#Totals],[年次]] -> ¥484,200 | R14: =D14/$P$14 -> 7% | S14: 8% | T14: 10% | U14: 8% | V14: 9% | W14: 5% | X14: 6% | Y14: 9% | Z14: 7% | AA14: 8% | AB14: 10% | AC14: 12% | AD14: 100%

Sheet 経費
B1: =Projection_Period_Title -> 12 か月 | AD1: =会社名 -> 会社名
B2: ='収益 (売上)'!$B$2 -> 損益予測 | AB2: 会計年度: | AC2: =FYMonthStart -> 1 月 | AD2: =FYStartYear -> 2017
D3: =UPPER(TEXT(DATE(FYStartYear,FYMonthNo,1),"yyyy 年 m 月")) -> 2017 年 1 月 | E3: =UPPER(TEXT(DATE(FYStartYear,FYMonthNo+1,1),"yyyy 年 m 月")) -> 2017 年 2 月 | F3: =UPPER(TEXT(DATE(FYStartYear,FYMonthNo+2,1),"yyyy 年 m 月")) -> 2017 年 3 月 | G3: =UPPER(TEXT(DATE(FYStartYear,FYMonthNo+3,1),"yyyy 年 m 月")) -> 2017 年 4 月 | H3: =UPPER(TEXT(DATE(FYStartYear,FYMonthNo+4,1),"yyyy 年 m 月")) -> 2017 年 5 月 | I3: =UPPER(TEXT(DATE(FYStartYear,FYMonthNo+5,1),"yyyy 年 m 月")) -> 2017 年 6 月 | J3: =UPPER(TEXT(DATE(FYStartYear,FYMonthNo+6,1),"yyyy 年 m 月")) -> 2017 年 7 月 | K3: =UPPER(TEXT(DATE(FYStartYear,FYMonthNo+7,1),"yyyy 年 m 月")) -> 2017 年 8 月 | L3: =UPPER(TEXT(DATE(FYStartYear,FYMonthNo+8,1),"yyyy 年 m 月")) -> 2017 年 9 月 | M3: =UPPER(TEXT(DATE(FYStartYear,FYMonthNo+9,1),"yyyy 年 m 月")) -> 2017 年 10 月 | N3: =UPPER(TEXT(DATE(FYStartYear,FYMonthNo+10,1),"yyyy 年 m 月")) -> 2017 年 11 月 | O3: =UPPER(TEXT(DATE(FYStartYear,FYMonthNo+11,1),"yyyy 年 m 月")) -> 2017 年 12 月 | P3: 年次 | Q3: インデックス % | R3: =IF(RIGHT(D3,4)>"0",RIGHT(D3,4),RIGHT(D3,3))&" %" -> 1 月 % | S3: =IF(RIGHT(E3,4)>"0",RIGHT(E3,4),RIGHT(E3,3))&" %" -> 2 月 % | T3: 3 月 % | U3: 4 月 % | V3: 5 月 % | W3: 6 月 % | X3: 7 月 % | Y3: 8 月 % | Z3: 9 月 % | AA3: 10 月 % | AB3: 11 月 % | AC3: 12 月 % | AD3: 年 %
B4: 経費 | C4: トレンド | D4: 列 1 | E4: 2 月 | F4: 3 月 | G4: 4 月 | H4: 5 月 | I4: 6 月 | J4: 7 月 | K4: 8 月 | L4: 9 月 | M4: 10 月 | N4: 11 月 | O4: 12 月 | P4: 年次 | Q4: インデックス % | R4: 1 月 % | S4: 2 月 % | T4: 3 月 % | U4: 4 月 % | V4: 5 月 % | W4: 6 月 % | X4: 7 月 % | Y4: 8 月 % | Z4: 9 月 % | AA4: 10 月 % | AB4: 11 月 % | AC4: 12 月 % | AD4: 年 %
B5: 給与経費 | D5: ¥1,000 | E5: ¥1,800 | F5: ¥1,300 | G5: ¥800 | H5: ¥2,200 | I5: ¥1,800 | J5: ¥800 | K5: ¥1,700 | L5: ¥2,000 | M5: ¥800 | N5: ¥400 | O5: ¥1,200 | P5: =SUM(tblExpenses[[#This Row],[列 1]:[12 月]]) -> ¥15,800 | Q5: 12% | R5: =tblExpenses[[#This Row],[列 1]]/tblExpenses[[#Totals],[列 1]] -> 4% | S5: =tblExpenses[[#This Row],[2 月]]/tblExpenses[[#Totals],[2 月]] -> 9% | T5: =tblExpenses[[#This Row],[3 月]]/tblExpenses[[#Totals],[3 月]] -> 5% | U5: =tblExpenses[[#This Row],[4 月]]/tblExpenses[[#Totals],[4 月]] -> 3% | V5: =tblExpenses[[#This Row],[5 月]]/tblExpenses[[#Totals],[5 月]] -> 9% | W5: =tblExpenses[[#This Row],[6 月]]/tblExpenses[[#Totals],[6 月]] -> 7% | X5: =tblExpenses[[#This Row],[7 月]]/tblExpenses[[#Totals],[7 月]] -> 3% | Y5: =tblExpenses[[#This Row],[8 月]]/tblExpenses[[#Totals],[8 月]] -> 7% | Z5: =tblExpenses[[#This Row],[9 月]]/tblExpenses[[#Totals],[9 月]] -> 9% | AA5: =tblExpenses[[#This Row],[10 月]]/tblExpenses[[#Totals],[10 月]] -> 3% | AB5: =tblExpenses[[#This Row],[11 月]]/tblExpenses[[#Totals],[11 月]] -> 1% | AC5: =tblExpenses[[#This Row],[12 月]]/tblExpenses[[#Totals],[12 月]] -> 5% | AD5: =tblExpenses[[#This Row],[年次]]/tblExpenses[[#Totals],[年次]] -> 5%
B6: 人件費 | D6: ¥2,300 | E6: ¥1,100 | F6: ¥700 | G6: ¥1,400 | H6: ¥1,200 | I6: ¥1,900 | J6: ¥1,900 | K6: ¥400 | L6: ¥700 | M6: ¥1,300 | N6: ¥2,500 | O6: ¥500 | P6: =SUM(tblExpenses[[#This Row],[列 1]:[12 月]]) -> ¥15,900 | Q6: 9% | R6: =tblExpenses[[#This Row],[列 1]]/tblExpenses[[#Totals],[列 1]] -> 10% | S6: =tblExpenses[[#This Row],[2 月]]/tblExpenses[[#Totals],[2 月]] -> 5% | T6: =tblExpenses[[#This Row],[3 月]]/tblExpenses[[#Totals],[3 月]] -> 3% | U6: =tblExpenses[[#This Row],[4 月]]/tblExpenses[[#Totals],[4 月]] -> 5% | V6: =tblExpenses[[#This Row],[5 月]]/tblExpenses[[#Totals],[5 月]] -> 5% | W6: =tblExpenses[[#This Row],[6 月]]/tblExpenses[[#Totals],[6 月]] -> 7% | X6: =tblExpenses[[#This Row],[7 月]]/tblExpenses[[#Totals],[7 月]] -> 7% | Y6: =tblExpenses[[#This Row],[8 月]]/tblExpenses[[#Totals],[8 月]] -> 2% | Z6: =tblExpenses[[#This Row],[9 月]]/tblExpenses[[#Totals],[9 月]] -> 3% | AA6: =tblExpenses[[#This Row],[10 月]]/tblExpenses[[#Totals],[10 月]] -> 5% | AB6: =tblExpenses[[#This Row],[11 月]]/tblExpenses[[#Totals],[11 月]] -> 8% | AC6: =tblExpenses[[#This Row],[12 月]]/tblExpenses[[#Totals],[12 月]] -> 2% | AD6: =tblExpenses[[#This Row],[年次]]/tblExpenses[[#Totals],[年次]] -> 5%
B7: 外部サービス | D7: ¥2,300 | E7: ¥2,000 | F7: ¥300 | G7: ¥1,600 | H7: ¥1,000 | I7: ¥500 | J7: ¥2,000 | K7: ¥700 | L7: ¥400 | M7: ¥2,200 | N7: ¥1,300 | O7: ¥1,400 | P7: =SUM(tblExpenses[[#This Row],[列 1]:[12 月]]) -> ¥15,700 | Q7: 2% | R7: =tblExpenses[[#This Row],[列 1]]/tblExpenses[[#Totals],[列 1]] -> 10% | S7: =tblExpenses[[#This Row],[2 月]]/tblExpenses[[#Totals],[2 月]] -> 10% | T7: =tblExpenses[[#This Row],[3 月]]/tblExpenses[[#Totals],[3 月]] -> 1% | U7: =tblExpenses[[#This Row],[4 月]]/tblExpenses[[#Totals],[4 月]] -> 6% | V7: =tblExpenses[[#This Row],[5 月]]/tblExpenses[[#Totals],[5 月]] -> 4% | W7: =tblExpenses[[#This Row],[6 月]]/tblExpenses[[#Totals],[6 月]] -> 2% | X7: =tblExpenses[[#This Row],[7 月]]/tblExpenses[[#Totals],[7 月]] -> 8% | Y7: =tblExpenses[[#This Row],[8 月]]/tblExpenses[[#Totals],[8 月]] -> 3% | Z7: =tblExpenses[[#This Row],[9 月]]/tblExpenses[[#Totals],[9 月]] -> 2% | AA7: =tblExpenses[[#This Row],[10 月]]/tblExpenses[[#Totals],[10 月]] -> 8% | AB7: =tblExpenses[[#This Row],[11 月]]/tblExpenses[[#Totals],[11 月]] -> 4% | AC7: =tblExpenses[[#This Row],[12 月]]/tblExpenses[[#Totals],[12 月]] -> 6% | AD7: =tblExpenses[[#This Row],[年次]]/tblExpenses[[#Totals],[年次]] -> 5%
B8: 備品 (事務および運転用) | D8: ¥1,900 | E8: ¥400 | F8: ¥700 | G8: ¥1,400 | H8: ¥2,200 | I8: ¥1,000 | J8: ¥2,200 | K8: ¥500 | L8: ¥400 | M8: ¥1,200 | N8: ¥1,800 | O8: ¥2,400 | P8: =SUM(tblExpenses[[#This Row],[列 1]:[12 月]]) -> ¥16,100 | Q8: 8% | R8: =tblExpenses[[#This Row],[列 1]]/tblExpenses[[#Totals],[列 1]] -> 8% | S8: =tblExpenses[[#This Row],[2 月]]/tblExpenses[[#Totals],[2 月]] -> 2% | T8: =tblExpenses[[#This Row],[3 月]]/tblExpenses[[#Totals],[3 月]] -> 3% | U8: =tblExpenses[[#This Row],[4 月]]/tblExpenses[[#Totals],[4 月]] -> 5% | V8: =tblExpenses[[#This Row],[5 月]]/tblExpenses[[#Totals],[5 月]] -> 9% | W8: =tblExpenses[[#This Row],[6 月]]/tblExpenses[[#Totals],[6 月]] -> 4% | X8: =tblExpenses[[#This Row],[7 月]]/tblExpenses[[#Totals],[7 月]] -> 8% | Y8: =tblExpenses[[#This Row],[8 月]]/tblExpenses[[#Totals],[8 月]] -> 2% | Z8: =tblExpenses[[#This Row],[9 月]]/tblExpenses[[#Totals],[9 月]] -> 2% | AA8: =tblExpenses[[#This Row],[10 月]]/tblExpenses[[#Totals],[10 月]] -> 5% | AB8: =tblExpenses[[#This Row],[11 月]]/tblExpenses[[#Totals],[11 月]] -> 6% | AC8: =tblExpenses[[#This Row],[12 月]]/tblExpenses[[#Totals],[12 月]] -> 10% | AD8: =tblExpenses[[#This Row],[年次]]/tblExpenses[[#Totals],[年次]] -> 5%
B9: 修繕およびメンテナンス費 | D9: ¥1,100 | E9: ¥1,100 | F9: ¥1,700 | G9: ¥1,200 | H9: ¥200 | I9: ¥1,400 | J9: ¥1,200 | K9: ¥1,000 | L9: ¥1,800 | M9: ¥1,100 | N9: ¥2,300 | O9: ¥1,100 | P9: =SUM(tblExpenses[[#This Row],[列 1]:[12 月]]) -> ¥15,200 | Q9: 3% | R9: =tblExpenses[[#This Row],[列 1]]/tblExpenses[[#Totals],[列 1]] -> 5% | S9: =tblExpenses[[#This Row],[2 月]]/tblExpenses[[#Totals],[2 月]] -> 5% | T9: =tblExpenses[[#This Row],[3 月]]/tblExpenses[[#Totals],[3 月]] -> 7% | U9: =tblExpenses[[#This Row],[4 月]]/tblExpenses[[#Totals],[4 月]] -> 5% | V9: =tblExpenses[[#This Row],[5 月]]/tblExpenses[[#Totals],[5 月]] -> 1% | W9: =tblExpenses[[#This Row],[6 月]]/tblExpenses[[#Totals],[6 月]] -> 5% | X9: =tblExpenses[[#This Row],[7 月]]/tblExpenses[[#Totals],[7 月]] -> 5% | Y9: =tblExpenses[[#This Row],[8 月]]/tblExpenses[[#Totals],[8 月]] -> 4% | Z9: =tblExpenses[[#This Row],[9 月]]/tblExpenses[[#Totals],[9 月]] -> 8% | AA9: =tblExpenses[[#This Row],[10 月]]/tblExpenses[[#Totals],[10 月]] -> 4% | AB9: =tblExpenses[[#This Row],[11 月]]/tblExpenses[[#Totals],[11 月]] -> 8% | AC9: =tblExpenses[[#This Row],[12 月]]/tblExpenses[[#Totals],[12 月]] -> 5% | AD9: =tblExpenses[[#This Row],[年次]]/tblExpenses[[#Totals],[年次]] -> 5%
B10: 広告 | D10: ¥200 | E10: ¥1,600 | F10: ¥600 | G10: ¥1,300 | H10: ¥1,100 | I10: ¥2,200 | J10: ¥2,100 | K10: ¥300 | L10: ¥1,200 | M10: ¥700 | N10: ¥1,700 | O10: ¥2,000 | P10: =SUM(tblExpenses[[#This Row],[列 1]:[12 月]]) -> ¥15,000 | Q10: 15% | R10: =tblExpenses[[#This Row],[列 1]]/tblExpenses[[#Totals],[列 1]] -> 1% | S10: =tblExpenses[[#This Row],[2 月]]/tblExpenses[[#Totals],[2 月]] -> 8% | T10: =tblExpenses[[#This Row],[3 月]]/tblExpenses[[#Totals],[3 月]] -> 2% | U10: =tblExpenses[[#This Row],[4 月]]/tblExpenses[[#Totals],[4 月]] -> 5% | V10: =tblExpenses[[#This Row],[5 月]]/tblExpenses[[#Totals],[5 月]] -> 4% | W10: =tblExpenses[[#This Row],[6 月]]/tblExpenses[[#Totals],[6 月]] -> 8% | X10: =tblExpenses[[#This Row],[7 月]]/tblExpenses[[#Totals],[7 月]] -> 8% | Y10: =tblExpenses[[#This Row],[8 月]]/tblExpenses[[#Totals],[8 月]] -> 1% | Z10: =tblExpenses[[#This Row],[9 月]]/tblExpenses[[#Totals],[9 月]] -> 5% | AA10: =tblExpenses[[#This Row],[10 月]]/tblExpenses[[#Totals],[10 月]] -> 3% | AB10: =tblExpenses[[#This Row],[11 月]]/tblExpenses[[#Totals],[11 月]] -> 6% | AC10: =tblExpenses[[#This Row],[12 月]]/tblExpenses[[#Totals],[12 月]] -> 9% | AD10: =tblExpenses[[#This Row],[年次]]/tblExpenses[[#Totals],[年次]] -> 5%
B11: 自動車、運送および出張 | D11: ¥800 | E11: ¥1,700 | F11: ¥1,100 | G11: ¥1,100 | H11: ¥2,100 | I11: ¥900 | J11: ¥2,000 | K11: ¥300 | L11: ¥1,400 | M11: ¥2,200 | N11: ¥1,600 | O11: ¥1,200 | P11: =SUM(tblExpenses[[#This Row],[列 1]:[12 月]]) -> ¥16,400 | Q11: 12% | R11: =tblExpenses[[#This Row],[列 1]]/tblExpenses[[#Totals],[列 1]] -> 3% | S11: =tblExpenses[[#This Row],[2 月]]/tblExpenses[[#Totals],[2 月]] -> 8% | T11: =tblExpenses[[#This Row],[3 月]]/tblExpenses[[#Totals],[3 月]] -> 4% | U11: =tblExpenses[[#This Row],[4 月]]/tblExpenses[[#Totals],[4 月]] -> 4% | V11: =tblExpenses[[#This Row],[5 月]]/tblExpenses[[#Totals],[5 月]] -> 8% | W11: =tblExpenses[[#This Row],[6 月]]/tblExpenses[[#Totals],[6 月]] -> 3% | X11: =tblExpenses[[#This Row],[7 月]]/tblExpenses[[#Totals],[7 月]] -> 8% | Y11: =tblExpenses[[#This Row],[8 月]]/tblExpenses[[#Totals],[8 月]] -> 1% | Z11: =tblExpenses[[#This Row],[9 月]]/tblExpenses[[#Totals],[9 月]] -> 6% | AA11: =tblExpenses[[#This Row],[10 月]]/tblExpenses[[#Totals],[10 月]] -> 8% | AB11: =tblExpenses[[#This Row],[11 月]]/tblExpenses[[#Totals],[11 月]] -> 5% | AC11: =tblExpenses[[#This Row],[12 月]]/tblExpenses[[#Totals],[12 月]] -> 5% | AD11: =tblExpenses[[#This Row],[年次]]/tblExpenses[[#Totals],[年次]] -> 5%
B12: 会計および法律 | D12: ¥500 | E12: ¥1,300 | F12: ¥600 | G12: ¥1,500 | H12: ¥1,900 | I12: ¥1,000 | J12: ¥1,200 | K12: ¥900 | L12: ¥1,500 | M12: ¥1,600 | N12: ¥400 | O12: ¥900 | P12: =SUM(tblExpenses[[#This Row],[列 1]:[12 月]]) -> ¥13,300 | Q12: 9% | R12: =tblExpenses[[#This Row],[列 1]]/tblExpenses[[#Totals],[列 1]] -> 2% | S12: =tblExpenses[[#This Row],[2 月]]/tblExpenses[[#Totals],[2 月]] -> 6% | T12: =tblExpenses[[#This Row],[3 月]]/tblExpenses[[#Totals],[3 月]] -> 2% | U12: =tblExpenses[[#This Row],[4 月]]/tblExpenses[[#Totals],[4 月]] -> 6% | V12: =tblExpenses[[#This Row],[5 月]]/tblExpenses[[#Totals],[5 月]] -> 7% | W12: =tblExpenses[[#This Row],[6 月]]/tblExpenses[[#Totals],[6 月]] -> 4% | X12: =tblExpenses[[#This Row],[7 月]]/tblExpenses[[#Totals],[7 月]] -> 5% | Y12: =tblExpenses[[#This Row],[8 月]]/tblExpenses[[#Totals],[8 月]] -> 4% | Z12: =tblExpenses[[#This Row],[9 月]]/tblExpenses[[#Totals],[9 月]] -> 7% | AA12: =tblExpenses[[#This Row],[10 月]]/tblExpenses[[#Totals],[10 月]] -> 6% | AB12: =tblExpenses[[#This Row],[11 月]]/tblExpenses[[#Totals],[11 月]] -> 1% | AC12: =tblExpenses[[#This Row],[12 月]]/tblExpenses[[#Totals],[12 月]] -> 4% | AD12: =tblExpenses[[#This Row],[年次]]/tblExpenses[[#Totals],[年次]] -> 4%
B13: 貸借料 | D13: ¥800 | E13: ¥400 | F13: ¥2,300 | G13: ¥2,500 | H13: ¥1,000 | I13: ¥2,400 | J13: ¥2,200 | K13: ¥500 | L13: ¥1,200 | M13: ¥2,400 | N13: ¥2,400 | O13: ¥1,200 | P13: =SUM(tblExpenses[[#This Row],[列 1]:[12 月]]) -> ¥19,300 | Q13: 1% | R13: =tblExpenses[[#This Row],[列 1]]/tblExpenses[[#Totals],[列 1]] -> 3% | S13: =tblExpenses[[#This Row],[2 月]]/tblExpenses[[#Totals],[2 月]] -> 2% | T13: =tblExpenses[[#This Row],[3 月]]/tblExpenses[[#Totals],[3 月]] -> 9% | U13: =tblExpenses[[#This Row],[4 月]]/tblExpenses[[#Totals],[4 月]] -> 10% | V13: =tblExpenses[[#This Row],[5 月]]/tblExpenses[[#Totals],[5 月]] -> 4% | W13: =tblExpenses[[#This Row],[6 月]]/tblExpenses[[#Totals],[6 月]] -> 9% | X13: =tblExpenses[[#This Row],[7 月]]/tblExpenses[[#Totals],[7 月]] -> 8% | Y13: =tblExpenses[[#This Row],[8 月]]/tblExpenses[[#Totals],[8 月]] -> 2% | Z13: =tblExpenses[[#This Row],[9 月]]/tblExpenses[[#Totals],[9 月]] -> 5% | AA13: =tblExpenses[[#This Row],[10 月]]/tblExpenses[[#Totals],[10 月]] -> 9% | AB13: =tblExpenses[[#This Row],[11 月]]/tblExpenses[[#Totals],[11 月]] -> 8% | AC13: =tblExpenses[[#This Row],[12 月]]/tblExpenses[[#Totals],[12 月]] -> 5% | AD13: =tblExpenses[[#This Row],[年次]]/tblExpenses[[#Totals],[年次]] -> 6%
B14: 電話番号 | D14: ¥2,500 | E14: ¥200 | F14: ¥1,200 | G14: ¥2,500 | H14: ¥1,000 | I14: ¥2,400 | J14: ¥300 | K14: ¥2,000 | L14: ¥300 | M14: ¥900 | N14: ¥2,000 | O14: ¥1,800 | P14: =SUM(tblExpenses[[#This Row],[列 1]:[12 月]]) -> ¥17,100 | Q14: 1% | R14: =tblExpenses[[#This Row],[列 1]]/tblExpenses[[#Totals],[列 1]] -> 11% | S14: =tblExpenses[[#This Row],[2 月]]/tblExpenses[[#Totals],[2 月]] -> 1% | T14: =tblExpenses[[#This Row],[3 月]]/tblExpenses[[#Totals],[3 月]] -> 5% | U14: =tblExpenses[[#This Row],[4 月]]/tblExpenses[[#Totals],[4 月]] -> 10% | V14: =tblExpenses[[#This Row],[5 月]]/tblExpenses[[#Totals],[5 月]] -> 4% | W14: =tblExpenses[[#This Row],[6 月]]/tblExpenses[[#Totals],[6 月]] -> 9% | X14: =tblExpenses[[#This Row],[7 月]]/tblExpenses[[#Totals],[7 月]] -> 1% | Y14: =tblExpenses[[#This Row],[8 月]]/tblExpenses[[#Totals],[8 月]] -> 9% | Z14: =tblExpenses[[#This Row],[9 月]]/tblExpenses[[#Totals],[9 月]] -> 1% | AA14: =tblExpenses[[#This Row],[10 月]]/tblExpenses[[#Totals],[10 月]] -> 3% | AB14: =tblExpenses[[#This Row],[11 月]]/tblExpenses[[#Totals],[11 月]] -> 7% | AC14: =tblExpenses[[#This Row],[12 月]]/tblExpenses[[#Totals],[12 月]] -> 8% | AD14: =tblExpenses[[#This Row],[年次]]/tblExpenses[[#Totals],[年次]] -> 6%
B15: 公共企業 | D15: ¥1,600 | E15: ¥1,900 | F15: ¥900 | G15: ¥1,600 | H15: ¥1,300 | I15: ¥200 | J15: ¥400 | K15: ¥2,400 | L15: ¥1,600 | M15: ¥2,200 | N15: ¥700 | O15: ¥1,800 | P15: =SUM(tblExpenses[[#This Row],[列 1]:[12 月]]) -> ¥16,600 | Q15: 1% | R15: =tblExpenses[[#This Row],[列 1]]/tblExpenses[[#Totals],[列 1]] -> 7% | S15: =tblExpenses[[#This Row],[2 月]]/tblExpenses[[#Totals],[2 月]] -> 9% | T15: =tblExpenses[[#This Row],[3 月]]/tblExpenses[[#Totals],[3 月]] -> 4% | U15: =tblExpenses[[#This Row],[4 月]]/tblExpenses[[#Totals],[4 月]] -> 6% | V15: =tblExpenses[[#This Row],[5 月]]/tblExpenses[[#Totals],[5 月]] -> 5% | W15: =tblExpenses[[#This Row],[6 月]]/tblExpenses[[#Totals],[6 月]] -> 1% | X15: =tblExpenses[[#This Row],[7 月]]/tblExpenses[[#Totals],[7 月]] -> 2% | Y15: =tblExpenses[[#This Row],[8 月]]/tblExpenses[[#Totals],[8 月]] -> 10% | Z15: =tblExpenses[[#This Row],[9 月]]/tblExpenses[[#Totals],[9 月]] -> 7% | AA15: =tblExpenses[[#This Row],[10 月]]/tblExpenses[[#Totals],[10 月]] -> 8% | AB15: =tblExpenses[[#This Row],[11 月]]/tblExpenses[[#Totals],[11 月]] -> 2% | AC15: =tblExpenses[[#This Row],[12 月]]/tblExpenses[[#Totals],[12 月]] -> 8% | AD15: =tblExpenses[[#This Row],[年次]]/tblExpenses[[#Totals],[年次]] -> 6%
B16: 保険料 | D16: ¥1,200 | E16: ¥900 | F16: ¥1,600 | G16: ¥1,900 | H16: ¥2,500 | I16: ¥1,700 | J16: ¥2,000 | K16: ¥1,400 | L16: ¥500 | M16: ¥1,400 | N16: ¥500 | O16: ¥200 | P16: =SUM(tblExpenses[[#This Row],[列 1]:[12 月]]) -> ¥15,800 | Q16: 1% | R16: =tblExpenses[[#This Row],[列 1]]/tblExpenses[[#Totals],[列 1]] -> 5% | S16: =tblExpenses[[#This Row],[2 月]]/tblExpenses[[#Totals],[2 月]] -> 4% | T16: =tblExpenses[[#This Row],[3 月]]/tblExpenses[[#Totals],[3 月]] -> 6% | U16: =tblExpenses[[#This Row],[4 月]]/tblExpenses[[#Totals],[4 月]] -> 7% | V16: =tblExpenses[[#This Row],[5 月]]/tblExpenses[[#Totals],[5 月]] -> 10% | W16: =tblExpenses[[#This Row],[6 月]]/tblExpenses[[#Totals],[6 月]] -> 6% | X16: =tblExpenses[[#This Row],[7 月]]/tblExpenses[[#Totals],[7 月]] -> 8% | Y16: =tblExpenses[[#This Row],[8 月]]/tblExpenses[[#Totals],[8 月]] -> 6% | Z16: =tblExpenses[[#This Row],[9 月]]/tblExpenses[[#Totals],[9 月]] -> 2% | AA16: =tblExpenses[[#This Row],[10 月]]/tblExpenses[[#Totals],[10 月]] -> 5% | AB16: =tblExpenses[[#This Row],[11 月]]/tblExpenses[[#Totals],[11 月]] -> 2% | AC16: =tblExpenses[[#This Row],[12 月]]/tblExpenses[[#Totals],[12 月]] -> 1% | AD16: =tblExpenses[[#This Row],[年次]]/tblExpenses[[#Totals],[年次]] -> 5%
B17: 税金 (不動産など) | D17: ¥1,600 | E17: ¥1,300 | F17: ¥1,000 | G17: ¥700 | H17: ¥1,300 | I17: ¥300 | J17: ¥1,300 | K17: ¥1,700 | L17: ¥900 | M17: ¥400 | N17: ¥2,200 | O17: ¥1,800 | P17: =SUM(tblExpenses[[#This Row],[列 1]:[12 月]]) -> ¥14,500 | Q17: 14% | R17: =tblExpenses[[#This Row],[列 1]]/tblExpenses[[#Totals],[列 1]] -> 7% | S17: =tblExpenses[[#This Row],[2 月]]/tblExpenses[[#Totals],[2 月]] -> 6% | T17: =tblExpenses[[#This Row],[3 月]]/tblExpenses[[#Totals],[3 月]] -> 4% | U17: =tblExpenses[[#This Row],[4 月]]/tblExpenses[[#Totals],[4 月]] -> 3% | V17: =tblExpenses[[#This Row],[5 月]]/tblExpenses[[#Totals],[5 月]] -> 5% | W17: =tblExpenses[[#This Row],[6 月]]/tblExpenses[[#Totals],[6 月]] -> 1% | X17: =tblExpenses[[#This Row],[7 月]]/tblExpenses[[#Totals],[7 月]] -> 5% | Y17: =tblExpenses[[#This Row],[8 月]]/tblExpenses[[#Totals],[8 月]] -> 7% | Z17: =tblExpenses[[#This Row],[9 月]]/tblExpenses[[#Totals],[9 月]] -> 4% | AA17: =tblExpenses[[#This Row],[10 月]]/tblExpenses[[#Totals],[10 月]] -> 2% | AB17: =tblExpenses[[#This Row],[11 月]]/tblExpenses[[#Totals],[11 月]] -> 7% | AC17: =tblExpenses[[#This Row],[12 月]]/tblExpenses[[#Totals],[12 月]] -> 8% | AD17: =tblExpenses[[#This Row],[年次]]/tblExpenses[[#Totals],[年次]] -> 5%
B18: 金利 | D18: ¥300 | E18: ¥200 | F18: ¥1,900 | G18: ¥2,100 | H18: ¥1,300 | I18: ¥900 | J18: ¥700 | K18: ¥1,300 | L18: ¥300 | M18: ¥600 | N18: ¥1,000 | O18: ¥1,300 | P18: =SUM(tblExpenses[[#This Row],[列 1]:[12 月]]) -> ¥11,900 | Q18: 6% | R18: =tblExpenses[[#This Row],[列 1]]/tblExpenses[[#Totals],[列 1]] -> 1% | S18: =tblExpenses[[#This Row],[2 月]]/tblExpenses[[#Totals],[2 月]] -> 1% | T18: =tblExpenses[[#This Row],[3 月]]/tblExpenses[[#Totals],[3 月]] -> 8% | U18: =tblExpenses[[#This Row],[4 月]]/tblExpenses[[#Totals],[4 月]] -> 8% | V18: =tblExpenses[[#This Row],[5 月]]/tblExpenses[[#Totals],[5 月]] -> 5% | W18: =tblExpenses[[#This Row],[6 月]]/tblExpenses[[#Totals],[6 月]] -> 3% | X18: =tblExpenses[[#This Row],[7 月]]/tblExpenses[[#Totals],[7 月]] -> 3% | Y18: =tblExpenses[[#This Row],[8 月]]/tblExpenses[[#Totals],[8 月]] -> 6% | Z18: =tblExpenses[[#This Row],[9 月]]/tblExpenses[[#Totals],[9 月]] -> 1% | AA18: =tblExpenses[[#This Row],[10 月]]/tblExpenses[[#Totals],[10 月]] -> 2% | AB18: =tblExpenses[[#This Row],[11 月]]/tblExpenses[[#Totals],[11 月]] -> 3% | AC18: =tblExpenses[[#This Row],[12 月]]/tblExpenses[[#Totals],[12 月]] -> 6% | AD18: =tblExpenses[[#This Row],[年次]]/tblExpenses[[#Totals],[年次]] -> 4%
B19: 減価償却費 | D19: ¥800 | E19: ¥700 | F19: ¥600 | G19: ¥700 | H19: ¥700 | I19: ¥600 | J19: ¥1,500 | K19: ¥2,300 | L19: ¥2,100 | M19: ¥1,600 | N19: ¥1,900 | O19: ¥700 | P19: =SUM(tblExpenses[[#This Row],[列 1]:[12 月]]) -> ¥14,200 | Q19: 1% | R19: =tblExpenses[[#This Row],[列 1]]/tblExpenses[[#Totals],[列 1]] -> 3% | S19: =tblExpenses[[#This Row],[2 月]]/tblExpenses[[#Totals],[2 月]] -> 3% | T19: =tblExpenses[[#This Row],[3 月]]/tblExpenses[[#Totals],[3 月]] -> 2% | U19: =tblExpenses[[#This Row],[4 月]]/tblExpenses[[#Totals],[4 月]] -> 3% | V19: =tblExpenses[[#This Row],[5 月]]/tblExpenses[[#Totals],[5 月]] -> 3% | W19: =tblExpenses[[#This Row],[6 月]]/tblExpenses[[#Totals],[6 月]] -> 2% | X19: =tblExpenses[[#This Row],[7 月]]/tblExpenses[[#Totals],[7 月]] -> 6% | Y19: =tblExpenses[[#This Row],[8 月]]/tblExpenses[[#Totals],[8 月]] -> 10% | Z19: =tblExpenses[[#This Row],[9 月]]/tblExpenses[[#Totals],[9 月]] -> 9% | AA19: =tblExpenses[[#This Row],[10 月]]/tblExpenses[[#Totals],[10 月]] -> 6% | AB19: =tblExpenses[[#This Row],[11 月]]/tblExpenses[[#Totals],[11 月]] -> 6% | AC19: =tblExpenses[[#This Row],[12 月]]/tblExpenses[[#Totals],[12 月]] -> 3% | AD19: =tblExpenses[[#This Row],[年次]]/tblExpenses[[#Totals],[年次]] -> 5%
B20: その他の費用 (具体的に) | D20: ¥1,400 | E20: ¥400 | F20: ¥2,400 | G20: ¥600 | H20: ¥2,000 | I20: ¥1,400 | J20: ¥2,100 | K20: ¥2,000 | L20: ¥2,200 | M20: ¥300 | N20: ¥1,400 | O20: ¥600 | P20: =SUM(tblExpenses[[#This Row],[列 1]:[12 月]]) -> ¥16,800 | Q20: 1% | R20: =tblExpenses[[#This Row],[列 1]]/tblExpenses[[#Totals],[列 1]] -> 6% | S20: =tblExpenses[[#This Row],[2 月]]/tblExpenses[[#Totals],[2 月]] -> 2% | T20: =tblExpenses[[#This Row],[3 月]]/tblExpenses[[#Totals],[3 月]] -> 10% | U20: =tblExpenses[[#This Row],[4 月]]/tblExpenses[[#Totals],[4 月]] -> 2% | V20: =tblExpenses[[#This Row],[5 月]]/tblExpenses[[#Totals],[5 月]] -> 8% | W20: =tblExpenses[[#This Row],[6 月]]/tblExpenses[[#Totals],[6 月]] -> 5% | X20: =tblExpenses[[#This Row],[7 月]]/tblExpenses[[#Totals],[7 月]] -> 8% | Y20: =tblExpenses[[#This Row],[8 月]]/tblExpenses[[#Totals],[8 月]] -> 9% | Z20: =tblExpenses[[#This Row],[9 月]]/tblExpenses[[#Totals],[9 月]] -> 10% | AA20: =tblExpenses[[#This Row],[10 月]]/tblExpenses[[#Totals],[10 月]] -> 1% | AB20: =tblExpenses[[#This Row],[11 月]]/tblExpenses[[#Totals],[11 月]] -> 5% | AC20: =tblExpenses[[#This Row],[12 月]]/tblExpenses[[#Totals],[12 月]] -> 3% | AD20: =tblExpenses[[#This Row],[年次]]/tblExpenses[[#Totals],[年次]] -> 6%
B21: その他の費用 (具体的に) | D21: ¥1,400 | E21: ¥700 | F21: ¥2,400 | G21: ¥1,000 | H21: ¥700 | I21: ¥2,400 | J21: ¥200 | K21: ¥1,100 | L21: ¥2,100 | M21: ¥1,900 | N21: ¥1,900 | O21: ¥2,000 | P21: =SUM(tblExpenses[[#This Row],[列 1]:[12 月]]) -> ¥17,800 | Q21: 1% | R21: =tblExpenses[[#This Row],[列 1]]/tblExpenses[[#Totals],[列 1]] -> 6% | S21: =tblExpenses[[#This Row],[2 月]]/tblExpenses[[#Totals],[2 月]] -> 3% | T21: =tblExpenses[[#This Row],[3 月]]/tblExpenses[[#Totals],[3 月]] -> 10% | U21: =tblExpenses[[#This Row],[4 月]]/tblExpenses[[#Totals],[4 月]] -> 4% | V21: =tblExpenses[[#This Row],[5 月]]/tblExpenses[[#Totals],[5 月]] -> 3% | W21: =tblExpenses[[#This Row],[6 月]]/tblExpenses[[#Totals],[6 月]] -> 9% | X21: =tblExpenses[[#This Row],[7 月]]/tblExpenses[[#Totals],[7 月]] -> 1% | Y21: =tblExpenses[[#This Row],[8 月]]/tblExpenses[[#Totals],[8 月]] -> 5% | Z21: =tblExpenses[[#This Row],[9 月]]/tblExpenses[[#Totals],[9 月]] -> 9% | AA21: =tblExpenses[[#This Row],[10 月]]/tblExpenses[[#Totals],[10 月]] -> 7% | AB21: =tblExpenses[[#This Row],[11 月]]/tblExpenses[[#Totals],[11 月]] -> 6% | AC21: =tblExpenses[[#This Row],[12 月]]/tblExpenses[[#Totals],[12 月]] -> 9% | AD21: =tblExpenses[[#This Row],[年次]]/tblExpenses[[#Totals],[年次]] -> 6%
B22: その他の費用 (具体的に) | D22: ¥1,100 | E22: ¥800 | F22: ¥2,500 | G22: ¥1,100 | H22: ¥900 | I22: ¥2,400 | J22: ¥1,300 | K22: ¥1,400 | L22: ¥1,900 | M22: ¥2,400 | N22: ¥1,500 | O22: ¥700 | P22: =SUM(tblExpenses[[#This Row],[列 1]:[12 月]]) -> ¥18,000 | Q22: 1% | R22: =tblExpenses[[#This Row],[列 1]]/tblExpenses[[#Totals],[列 1]] -> 5% | S22: =tblExpenses[[#This Row],[2 月]]/tblExpenses[[#Totals],[2 月]] -> 4% | T22: =tblExpenses[[#This Row],[3 月]]/tblExpenses[[#Totals],[3 月]] -> 10% | U22: =tblExpenses[[#This Row],[4 月]]/tblExpenses[[#Totals],[4 月]] -> 4% | V22: =tblExpenses[[#This Row],[5 月]]/tblExpenses[[#Totals],[5 月]] -> 4% | W22: =tblExpenses[[#This Row],[6 月]]/tblExpenses[[#Totals],[6 月]] -> 9% | X22: =tblExpenses[[#This Row],[7 月]]/tblExpenses[[#Totals],[7 月]] -> 5% | Y22: =tblExpenses[[#This Row],[8 月]]/tblExpenses[[#Totals],[8 月]] -> 6% | Z22: =tblExpenses[[#This Row],[9 月]]/tblExpenses[[#Totals],[9 月]] -> 8% | AA22: =tblExpenses[[#This Row],[10 月]]/tblExpenses[[#Totals],[10 月]] -> 9% | AB22: =tblExpenses[[#This Row],[11 月]]/tblExpenses[[#Totals],[11 月]] -> 5% | AC22: =tblExpenses[[#This Row],[12 月]]/tblExpenses[[#Totals],[12 月]] -> 3% | AD22: =tblExpenses[[#This Row],[年次]]/tblExpenses[[#Totals],[年次]] -> 6%
B23: その他 (指定しない) | D23: ¥800 | E23: ¥2,000 | F23: ¥1,100 | G23: ¥1,100 | H23: ¥1,100 | I23: ¥2,000 | J23: ¥1,200 | K23: ¥1,600 | L23: ¥500 | M23: ¥700 | N23: ¥2,100 | O23: ¥300 | P23: =SUM(tblExpenses[[#This Row],[列 1]:[12 月]]) -> ¥14,500 | Q23: 2% | R23: =tblExpenses[[#This Row],[列 1]]/tblExpenses[[#Totals],[列 1]] -> 3% | S23: =tblExpenses[[#This Row],[2 月]]/tblExpenses[[#Totals],[2 月]] -> 10% | T23: =tblExpenses[[#This Row],[3 月]]/tblExpenses[[#Totals],[3 月]] -> 4% | U23: =tblExpenses[[#This Row],[4 月]]/tblExpenses[[#Totals],[4 月]] -> 4% | V23: =tblExpenses[[#This Row],[5 月]]/tblExpenses[[#Totals],[5 月]] -> 4% | W23: =tblExpenses[[#This Row],[6 月]]/tblExpenses[[#Totals],[6 月]] -> 7% | X23: =tblExpenses[[#This Row],[7 月]]/tblExpenses[[#Totals],[7 月]] -> 5% | Y23: =tblExpenses[[#This Row],[8 月]]/tblExpenses[[#Totals],[8 月]] -> 7% | Z23: =tblExpenses[[#This Row],[9 月]]/tblExpenses[[#Totals],[9 月]] -> 2% | AA23: =tblExpenses[[#This Row],[10 月]]/tblExpenses[[#Totals],[10 月]] -> 3% | AB23: =tblExpenses[[#This Row],[11 月]]/tblExpenses[[#Totals],[11 月]] -> 7% | AC23: =tblExpenses[[#This Row],[12 月]]/tblExpenses[[#Totals],[12 月]] -> 1% | AD23: =tblExpenses[[#This Row],[年次]]/tblExpenses[[#Totals],[年次]] -> 5%
B24: 経費合計 | D24: =SUBTOTAL(109,tblExpenses[列 1]) -> ¥23,600 | E24: =SUBTOTAL(109,tblExpenses[2 月]) -> ¥20,500 | F24: =SUBTOTAL(109,tblExpenses[3 月]) -> ¥24,900 | G24: =SUBTOTAL(109,tblExpenses[4 月]) -> ¥26,100 | H24: =SUBTOTAL(109,tblExpenses[5 月]) -> ¥25,700 | I24: =SUBTOTAL(109,tblExpenses[6 月]) -> ¥27,400 | J24: =SUBTOTAL(109,tblExpenses[7 月]) -> ¥26,600 | K24: =SUBTOTAL(109,tblExpenses[8 月]) -> ¥23,500 | L24: =SUBTOTAL(109,tblExpenses[9 月]) -> ¥23,000 | M24: =SUBTOTAL(109,tblExpenses[10 月]) -> ¥25,900 | N24: =SUBTOTAL(109,tblExpenses[11 月]) -> ¥29,600 | O24: =SUBTOTAL(109,tblExpenses[12 月]) -> ¥23,100 | P24: =SUBTOTAL(109,tblExpenses[年次]) -> ¥299,900 | Q24: =SUBTOTAL(109,tblExpenses[インデックス %]) -> 100% | R24: =SUBTOTAL(109,tblExpenses[1 月 %]) -> 100% | S24: =SUBTOTAL(109,tblExpenses[2 月 %]) -> 100% | T24: =SUBTOTAL(109,tblExpenses[3 月 %]) -> 100% | U24: =SUBTOTAL(109,tblExpenses[4 月 %]) -> 100% | V24: =SUBTOTAL(109,tblExpenses[5 月 %]) -> 100% | W24: =SUBTOTAL(109,tblExpenses[6 月 %]) -> 100% | X24: =SUBTOTAL(109,tblExpenses[7 月 %]) -> 100% | Y24: =SUBTOTAL(109,tblExpenses[8 月 %]) -> 100% | Z24: =SUBTOTAL(109,tblExpenses[9 月 %]) -> 100% | AA24: =SUBTOTAL(109,tblExpenses[10 月 %]) -> 100% | AB24: =SUBTOTAL(109,tblExpenses[11 月 %]) -> 100% | AC24: =SUBTOTAL(109,tblExpenses[12 月 %]) -> 100% | AD24: =SUBTOTAL(109,tblExpenses[年 %]) -> 100%
B26: 純利益 | D26: =売上原価!$D$14-tblExpenses[[#Totals],[列 1]] -> ¥12,300 | E26: =売上原価!E14-tblExpenses[[#Totals],[2 月]] -> ¥17,500 | F26: =売上原価!F14-tblExpenses[[#Totals],[3 月]] -> ¥25,600 | G26: =売上原価!G14-tblExpenses[[#Totals],[4 月]] -> ¥10,900 | H26: =売上原価!H14-tblExpenses[[#Totals],[5 月]] -> ¥15,600 | I26: =売上原価!I14-tblExpenses[[#Totals],[6 月]] -> ¥-800 | J26: =売上原価!J14-tblExpenses[[#Totals],[7 月]] -> ¥3,200 | K26: =売上原価!K14-tblExpenses[[#Totals],[8 月]] -> ¥21,400 | L26: =売上原価!L14-tblExpenses[[#Totals],[9 月]] -> ¥10,000 | M26: =売上原価!M14-tblExpenses[[#Totals],[10 月]] -> ¥14,800 | N26: =売上原価!N14-tblExpenses[[#Totals],[11 月]] -> ¥17,900 | O26: =売上原価!O14-tblExpenses[[#Totals],[12 月]] -> ¥35,900 | P26: =売上原価!P14-tblExpenses[[#Totals],[年次]] -> ¥184,300 | R26: =D26/$P$26 -> 7% | S26: =E26/$P$26 -> 9% | T26: 14% | U26: 6% | V26: 8% | W26: -0% | X26: 2% | Y26: 12% | Z26: 5% | AA26: 8% | AB26: 10% | AC26: 19% | AD26: 100%
